Cogmind - Beta 16 @@@ ROGUE MODE // 2025.11.27 @ 14:23:40 Player: ktur Result: Destroyed by S-27 Virus with Autogun Performance ------------- Evolutions (5) 2500 Regions Visited (8) 1600 Robots Destroyed (40) 200 Value Destroyed (2103) 2103 Prototype IDs (26) 520 Alien Tech Used (0) 0 Bonus (3462) 3462 TOTAL SCORE: 10385 Bonus ------- Follower Combat Kills 475 Entered Garrisons 200 Delivered SUBCON Basin 2000 Registered with UFD 300 Met Optimus in HQ 500 Friendly Fire -13 Cogmind --------- Core Integrity 0/1000 Matter 84/300 Energy 100/100 System Corruption 9% Temperature Cool (2) Movement Flying (35) Location -5/Factory Parts ------- > --- POWER (2) -------- (None) > --- PROPULSION (6) --- VTOL Module > --- UTILITY (7) ------ (None) > --- WEAPON (2) ------- (None) > --- INVENTORY (5) ---- Advanced ECM Suite Authchip [Processor] Authchip [Armor] LU-1G1's Laser Shovel Botcube Peak State ------------ > --- POWER ------------ Fission Core Fission Core > --- PROPULSION ------- Improved Carbon-fiber Leg Improved Carbon-fiber Leg Improved Carbon-fiber Leg Improved Carbon-fiber Leg Improved Carbon-fiber Leg > --- UTILITY ---------- Light Humpback Medium Reactive Plating Thermal Shield Tech Extrapolator Master Drone Bay > --- WEAPON ----------- Flak Cannon Makeshift Sword > --- INVENTORY -------- Improved Carbon-fiber Leg Flightbrick Large Storage Unit Huge Storage Unit Seismic Detector Improved Actuator Array Advanced ECM Suite Improved Propulsion Shielding Medium Reactive Plating Medium Reactive Plating Hardlight Generator Hacking Suite Improved Hacking Suite Authchip [Armor] Authchip [Armor] Heavy Machine Gun Mini Grenade Launcher Improved Datajack LU-1G1's Laser Shovel CPS Tube Multitool Botcube [Rating: 74] Favorites ----------- Power Ion Engine Engine Ion Engine Power Core Light Nuclear Core Propulsion Light Treads Treads Light Treads Leg Improved Carbon-fiber Leg Wheel Subdweller Monowheel Flight Unit Flightbrick Utility Light Humpback Device Master Drone Bay Storage Light Humpback Processor Tech Extrapolator Hackware Improved Hacking Suite Protection Scrap Shield Weapon Makeshift Sword Energy Gun Subdweller Laser Ballistic Gun Battle Rifle Ballistic Cannon Flak Cannon Launcher Mini Grenade Launcher Special Weapon Multitool Slashing Weapon Makeshift Sword Special Melee Weapon Improved Datajack Build | -11 -10 -10 -8 -8 -6 -6 -6 -5 ------- Run | Yrd Mat Sub Rec Scr Fac Gar Fac Fac Slots Evolved 10 | . . . . . 8 . . 2 Power 1 | . . . . . 1 . . . Propulsion 4 | . . . . . 3 . . 1 Utility 5 | . . . . . 4 . . 1 Weapon . | . . . . . . . . . Parts Attached 74 | 7 . 17 1 11 22 4 10 2 Power 7 | 1 . . . 2 2 . 2 . Engine 1 | 1 . . . . . . . . Core 6 | . . . . 2 2 . 2 . Reactor . | . . . . . . . . . Propulsion 22 | 2 . 2 1 4 9 1 2 1 Treads 9 | 2 . 1 1 3 2 . . . Leg 7 | . . . . . 7 . . . Wheel 2 | . . 1 . 1 . . . . Hover . | . . . . . . . . . Flight 4 | . . . . . . 1 2 1 Utility 27 | 2 . 6 . . 10 3 5 1 Device 8 | 1 . 2 . . 5 . . . Storage 4 | 1 . 1 . . . 2 . . Processor 3 | . . . . . 2 . . 1 Hackware 4 | . . . . . . . 4 . Protection 8 | . . 3 . . 3 1 1 . Artifact . | . . . . . . . . . Weapon 18 | 2 . 9 . 5 1 . 1 . Energy Gun 3 | 1 . 2 . . . . . . Energy Cannon . | . . . . . . . . . Ballistic Gun 8 | 1 . 5 . 1 . . 1 . Ballistic Cannon 1 | . . . . 1 . . . . Launcher 1 | . . . . . 1 . . . Special Weapon 2 | . . 1 . 1 . . . . Impact Weapon . | . . . . . . . . . Slashing Weapon 1 | . . 1 . . . . . . Piercing Weapon . | . . . . . . . . . Special Melee Weapon 2 | . . . . 2 . . . . Unidentified Prototypes 2 | . . . . 1 . . 1 . Parts Lost 22 | . . 1 . . 1 12 2 6 Power 3 | . . . . . . 2 . 1 Propulsion 8 | . . 1 . . . 4 . 3 Utility 10 | . . . . . 1 5 2 2 Weapon 1 | . . . . . . 1 . . Highest Loss Streak 9 | . . 1 . . 1 9 1 3 To Critical Strikes 1 | . . . . . . . . 1 Average Backups 11 | 3 4 4 8 18 20 19 12 9 Power . | . 1 . . . . . . . Propulsion 1 | 1 2 . 2 3 2 . . . Utility 6 | . . 1 2 11 12 13 8 6 Weapon 1 | 1 1 2 2 1 1 . . . Tool/Special . | . . . . . . . . . Unused Backups 53 | . . 5 2 24 12 . 1 9 Power 3 | . . 1 . 1 1 . . . Propulsion 8 | . . 2 1 4 1 . . . Utility 28 | . . . 1 12 7 . . 8 Weapon 12 | . . 2 . 6 3 . 1 . Tool/Special 2 | . . . . 1 . . . 1 Average Slot Usage (%) 83 | . 100 88 85 84 80 81 33 26 Engine 8 | . 14 14 14 2 . . . . Core 5 | . . . . 11 9 11 3 2 Treads 20 | . 28 21 28 26 8 . . . Leg 3 | . . . . . 20 29 . . Wheel 2 | . . 6 . . . . . . Device 3 | . 14 3 . . 9 14 . . Storage 9 | . 14 6 14 14 6 5 5 3 Protection 3 | . . 7 . . 3 4 2 . Energy Gun 6 | . 14 11 14 1 . . . . Ballistic Gun 4 | . 14 10 . 1 . . . . Slashing Weapon 9 | . . 5 14 14 6 5 . . Special Melee Weapon 2 | . . . . 8 . . . . Peak Build Rating 74 | 7 7 34 36 34 74 74 69 62 Average Rating 28 | 4 7 14 29 25 61 68 57 46 On Entrance 30 | . 7 7 34 23 29 72 43 62 Avg Prop Armor Cover (%) 5 | . . 1 . . 12 5 . 30 Naked Turns 18 | . . . . . . . . 18 Heaviest Build 125 | 15 15 51 51 53 94 125 31 25 Greatest Support 90 | 40 40 40 42 42 90 88 28 28 Greatest Overweight (x) 7 | 1 . 2 1 2 1 7 7 . Average Overweight (x) . | . . . 1 1 . . . . Largest Inventory Capacity 25 | 8 8 25 25 25 25 25 15 15 Average Capacity 18 | 7 8 9 25 25 25 24 15 11 Most Carried 25 | 8 5 25 25 25 25 25 15 15 Average Carried 16 | 4 4 8 22 23 24 23 13 10 Final Capacity 25 | 8 8 25 25 25 25 15 15 5 Final Carried 25 | 4 5 25 25 25 25 15 14 5 Class Distribution -------------------- 55% | Mutant 23% | Derelict-Mutant 17% | Subdweller-Mutant Dominant Class ---------------- Mutant | -10/Materials Mutant | -10/Subcaves Mutant | -8/Recycling Derelict-Mutant | -8/Scraptown Mutant | -6/Factory Mutant | -6/Garrison Hacker-Mutant | -6/Factory Hacker-Mutant | -5/Factory Resources | -11 -10 -10 -8 -8 -6 -6 -6 -5 ----------- Run | Yrd Mat Sub Rec Scr Fac Gar Fac Fac Matter Collected 1974 | 269 13 772 10 60 473 239 107 31 Remotely . | . . . . . . . . . Salvage Created 1856 | 15 29 696 224 . 405 350 107 30 Parts 86 | 3 1 38 7 . 18 5 10 4 Haulers Intercepted . | . . . . . . . . . Recyclers Shooed . | . . . . . . . . . Parts Field Recycled . | . . . . . . . . . Retrieved Matter . | . . . . . . . . . Parts Self-Destructed 11 | . . 11 . . . . . . Prevented . | . . . . . . . . . Parts Restored . | . . . . . . . . . Kills | -11 -10 -10 -8 -8 -6 -6 -6 -5 ------- Run | Yrd Mat Sub Rec Scr Fac Gar Fac Fac Combat Hostiles Destroyed 71 | . . 16 1 . 3 46 4 1 Melee 10 | . . 2 1 . . 5 1 1 Guns 17 | . . 14 . . . . 3 . Cannons 2 | . . . . . 2 . . . AOE 42 | . . . . . 1 41 . . Classes Destroyed 13 | 1 . 4 1 . 4 2 1 . Builder 1 | . . . . . 1 . . . Tunneler 2 | 1 1 . . . . . . . Recycler 4 | . . . 2 . 2 . . . Operator 1 | . . . . . 1 . . . Swarmer 5 | . . . . . . 2 2 1 Cutter 2 | . . . . . . . 2 . Grunt 7 | . . 1 . . 3 3 . . Sentry 2 | . . 1 1 . . . . . Programmer 2 | . . . . . 1 1 . . Cobbler 1 | . . 1 . . . . . . Subdweller 14 | . . 14 . . . . . . Botcube 1 | . . . . . 1 . . . Assembled 40 | . . . . . . 40 . . Best Kill Streak 33 | 1 1 2 1 . 3 33 2 1 Combat Bots Only 33 | . . 2 1 . 3 33 2 1 Max Kills in Single Turn 4 | 1 1 1 1 . 1 4 1 1 Gunslinging . | . . . . . . . . . Exploded 4 | . . . . . 1 4 . . Melee 1 | . . 1 1 . . 1 1 1 Uniques/NPCs Destroyed . | . . . . . . . . . Combat | -11 -10 -10 -8 -8 -6 -6 -6 -5 -------- Run | Yrd Mat Sub Rec Scr Fac Gar Fac Fac Hostile Shots Fired 644 | . . 68 2 8 15 258 74 219 Missed 247 | . . 25 . 3 3 79 35 102 Hits 397 | . . 43 2 5 12 179 39 117 Melee 17 | . . . . . . 11 6 . Projectile 380 | . . 43 2 5 12 168 33 117 Critical Strikes 9 | . . 2 . . . 2 3 2 Actively Blocked 2 | . . . . . . . 2 . Damage Taken 6641 | . . 1037 27 26 314 2566 761 1910 Core 1518 | . . 55 . 19 64 310 66 1004 Absorbed by Shields 122 | . . . . . . 92 . 30 Redirected to Shielding 106 | . . . . . 24 . 82 . Ignored by Resistances 290 | . . . . . . 290 . . Core Remaining (%) 72 | 100 . . . 70 . . 48 . Volleys Fired 133 | 2 2 64 . . 14 41 10 . Largest 2 | 2 2 2 . . 1 1 1 . Hottest 90 | 70 70 90 . . 37 30 28 . Shots Fired 185 | 4 4 112 . . 14 41 10 . Gun 123 | 4 4 105 . . . . 10 . Cannon 6 | . . . . . 6 . . . Launcher 45 | . . . . . 4 41 . . Special 11 | . . 7 . . 4 . . . Kinetic 89 | 2 2 69 . . 6 . 10 . Thermal 51 | 2 2 43 . . 4 . . . Explosive 45 | . . . . . 4 41 . . Electromagnetic . | . . . . . . . . . Robot Hit Streak 19 | 1 1 19 . . 10 2 3 . Robot Miss Streak 4 | 2 1 3 . . 2 4 1 . Penetration Max . | . . . . . . . . . Secondary Targets . | . . . . . . . . . Shots Hit Robots 171 | 1 2 93 5 . 36 26 8 . Core Hits 126 | 1 1 30 3 . 15 70 5 1 Critical Kills . | . . . . . . . . . Critical Parts Destroyed . | . . . . . . . . . Critical Strikes 5 | . . . 1 . 3 1 . . Sever 5 | . . . 1 . 3 1 . . Melee Attacks 100 | . . 31 5 3 31 30 . . Impact . | . . . . . . . . . Slashing 100 | . . 31 5 3 31 30 . . Piercing . | . . . . . . . . . Sneak Attacks 28 | . . 2 4 . 22 . . . Combat Hostiles . | . . . . . . . . . Follow-up Attacks . | . . . . . . . . . Damage Inflicted 7992 | 13 23 1759 335 . 2136 3346 320 60 Guns 1662 | 13 23 1470 . . . . 156 . Cannons 148 | . . . . . 148 . . . Explosions 3073 | . . . . . 346 2727 . . Melee 2801 | . . 245 325 . 1612 619 . . Ramming 234 | . . . 10 . . . 164 60 Kinetic 1222 | . 23 895 . . 148 . 156 . Thermal 662 | 13 . 619 . . 30 . . . Explosive 3073 | . . . . . 346 2727 . . Electromagnetic . | . . . . . . . . . Impact . | . . . . . . . . . Slashing 2801 | . . 245 325 . 1612 619 . . Piercing . | . . . . . . . . . Highest Corruption 15 | . . . . . 1 10 15 9 Average Corruption 4 | . . . . . 1 3 13 7 Corruption Purged 1 | . . . . . 1 . . . Corruption Blocked . | . . . . . . . . . Effects 37 | . . . . . 3 19 13 2 Message Errors 11 | . . . . . 1 3 7 . Matter Fused 8 | . . . . . 1 5 1 1 Heat Flow Errors 2 | . . . . . . 2 . . Energy Discharges 4 | . . . . . . 3 1 . Parts Rejected 3 | . . . . . . 3 . . Data Loss (minor) 4 | . . . . . 1 1 1 1 Data Loss (major) 1 | . . . . . . 1 . . Misdirections 4 | . . . . . . 1 3 . Overload Shots . | . . . . . . . . . Overflow Damage 485 | . . . 52 . 245 188 . . Projectiles . | . . . . . . . . . Explosions 90 | . . . . . . 90 . . Melee 395 | . . . 52 . 245 98 . . Knockbacks 1 | . . . . . . . 1 . Impact 1 | . . . . . . . 1 . Kinetic . | . . . . . . . . . Secondary . | . . . . . . . . . Self-Inflicted Damage 368 | . . . . . . 259 79 30 Shots 12 | . . . . . . 12 . . Rammed 40 | . . . 1 . . . 19 20 Targets Rammed 40 | . . . 1 . . . 19 20 Kicked . | . . . . . . . . . Crushed . | . . . . . . . . . Highest Temperature 239 | 18 9 239 . . . 191 2 . Average Temperature 50 | 10 6 56 . . . 64 1 . Received Heat Transfer 1167 | . . 576 9 . 90 294 54 144 Siege Activations . | . . . . . . . . . Martial Activations . | . . . . . . . . . Shielding Activations . | . . . . . . . . . Robots Disrupted . | . . . . . . . . . Combat Hostiles . | . . . . . . . . . Robots Corrupted . | . . . . . . . . . Combat Hostiles . | . . . . . . . . . Parts Fried . | . . . . . . . . . Impact Corruptions . | . . . . . . . . . Robots Melted . | . . . . . . . . . Combat Hostiles . | . . . . . . . . . Parts Melted . | . . . . . . . . . Heat Transferred 987 | 37 . 850 . . 100 . . . Parts Sabotaged . | . . . . . . . . . Parts Stolen . | . . . . . . . . . Parts Stripped . | . . . . . . . . . Power Chain Reactions . | . . . . . . . . . Alert | -11 -10 -10 -8 -8 -6 -6 -6 -5 ------- Run | Yrd Mat Sub Rec Scr Fac Gar Fac Fac Maximum Alert Level 2 | . . . . . . 2 1 1 Low Security (%) 83 | 100 100 . 100 . 100 46 21 90 Level 1 10 | . . . . . . 23 78 9 Level 2 6 | . . . . . . 30 . . Level 3 . | . . . . . . . . . Level 4 . | . . . . . . . . . Level 5 . | . . . . . . . . . High Security . | . . . . . . . . . Max Security . | . . . . . . . . . Peak Influence 479 | . 5 . 54 . 97 479 242 258 Initial 212 | . . . . . . . 212 108 Average 70 | . . . 5 . 13 212 210 116 Influence Increases 1689 | 5 5 50 200 . 223 676 180 350 Destroy 0b10 Robot/C 500 | . . 40 20 . 120 220 80 20 Destroy 0b10 Robot/NC 45 | 5 5 . 10 . 25 . . . Destroy Leader 60 | . . 10 . . 20 10 20 . Allied During Kill 19 | . . . . . 8 11 . . Successful Hack 60 | . . . 20 . 20 . 20 . Select Force Hacks 150 | . . . 150 . . . . . Disable Machine 15 | . . . . . . 15 . . Anti-Garrison Action 300 | . . . . . . 300 . . Destroy Structure 150 | . . . . . 30 120 . . Lose Combat Pursuer 390 | . . . . . . . 60 330 Influence Decreases 1431 | 5 5 50 200 . 223 270 364 314 Entered New Map 308 | . . . . . . . 194 114 Time Decay 750 | 5 5 50 200 . 200 . 150 140 Lost Part 210 | . . . . . 10 120 20 60 Lost Ally 163 | . . . . . 13 150 . . Squads Dispatched 12 | . 1 . . . 4 . 4 3 Investigation 5 | . . . . . 1 . 2 2 Extermination 3 | . . . . . 2 . 1 . Reinforcement 4 | . 1 . . . 1 . 1 1 Assault . | . . . . . . . . . Garrison . | . . . . . . . . . Intercept . | . . . . . . . . . Searches Triggered . | . . . . . . . . . Construction Impeded . | . . . . . . . . . Haulers Reinforced . | . . . . . . . . . Active Scanning Responses . | . . . . . . . . . Cargo Convoy Interrupts . | . . . . . . . . . Stealth | -11 -10 -10 -8 -8 -6 -6 -6 -5 --------- Run | Yrd Mat Sub Rec Scr Fac Gar Fac Fac Distress Signals . | . . . . . . . . . Communications Jammed . | . . . . . . . . . Distress Signals . | . . . . . . . . . Times Spotted 174 | . 1 21 1 7 13 76 15 40 Peak Tracking Total 17 | . 1 6 . 2 4 13 5 17 Tactical Retreats 13 | . . . . . . 3 2 8 Traps | -11 -10 -10 -8 -8 -6 -6 -6 -5 ------- Run | Yrd Mat Sub Rec Scr Fac Gar Fac Fac Traps Triggered 6 | . . 1 . . 3 1 . 1 Indirectly . | . . . . . . . . . Trap Hack Attempts . | . . . . . . . . . Triggered . | . . . . . . . . . Disarmed . | . . . . . . . . . Reprogrammed . | . . . . . . . . . Reused . | . . . . . . . . . Traps Extracted . | . . . . . . . . . Installed . | . . . . . . . . . Triggered . | . . . . . . . . . Machines | -11 -10 -10 -8 -8 -6 -6 -6 -5 ---------- Run | Yrd Mat Sub Rec Scr Fac Gar Fac Fac Machines Disabled 13 | . . 1 . 7 . 5 . . Max in Single Turn 1 | . . 1 . 1 . 1 . . Garrison Access 1 | . . . . . . . . 1 Garrison Relay 4 | . . . . . . 4 . . Machines Repaired . | . . . . . . . . . Machines Dismantled . | . . . . . . . . . Machines Sabotaged . | . . . . . . . . . Overloaded Fab Kills . | . . . . . . . . . Hacking | -11 -10 -10 -8 -8 -6 -6 -6 -5 --------- Run | Yrd Mat Sub Rec Scr Fac Gar Fac Fac Machines Accessed 36 | . . 4 11 3 8 1 5 4 Terminals 14 | . . . 6 . 4 1 2 1 Fabricators 5 | . . . . . 2 . 1 2 Repair Stations . | . . . . . . . . . Recycling Units 7 | . . . 5 . . . 2 . Scanalyzers 1 | . . . . . 1 . . . Garrison Access 2 | . . . . . 1 . . 1 Total Hacks 83 | . . 8 28 7 19 2 13 6 Successful 50 | . . 8 12 7 12 . 8 3 Failed 33 | . . . 16 . 7 2 5 3 Catastrophic 9 | . . . 4 . 4 . . 1 Database Lockouts . | . . . . . . . . . Manual 29 | . . . 21 . 1 . 6 1 Terminals 36 | . . . 22 . 5 2 5 2 Fabricators 9 | . . . . . 5 . 2 2 Repair Stations . | . . . . . . . . . Recycling Units 12 | . . . 6 . . . 6 . Scanalyzers 8 | . . . . . 8 . . . Garrison Access 3 | . . . . . 1 . . 2 Terminal Hacks 25 | . . 8 6 7 1 . 3 . Record 6 | . . 5 . 1 . . . . Part Schematic 3 | . . . 3 . . . . . Robot Analysis 7 | . . . 2 5 . . . . Prototype ID Bank 2 | . . . 1 . 1 . . . Open Door 1 | . . 1 . . . . . . Open DSF 1 | . . . . . . . 1 . Level Access Points 1 | . . . . . . . 1 . Branch Access Points 1 | . . . . . . . 1 . Proto ID Catalog 2 | . . 1 . 1 . . . . Release Object 1 | . . 1 . . . . . . Fabricator Hacks 4 | . . . . . 2 . 1 1 Network Status 2 | . . . . . 1 . . 1 Load Schematic 2 | . . . . . 1 . 1 . Repair Station Hacks . | . . . . . . . . . Recycling Unit Hacks 2 | . . . . . . . 2 . Process 1 | . . . . . . . 1 . Retrieve Matter 1 | . . . . . . . 1 . Scanalyzer 8 | . . . . . 8 . . . Insert Component 1 | . . . . . 1 . . . Analyze 1 | . . . . . 1 . . . Retrieve Study 6 | . . . . . 6 . . . Garrison Access Hacks 2 | . . . . . 1 . . 1 Unlock Access 1 | . . . . . 1 . . . Seal Access 1 | . . . . . . . . 1 Unauthorized Hacks 8 | . . . 6 . . . 1 1 Terminals 1 | . . . 1 . . . . . Skim 1 | . . . 1 . . . . . Fabricators 2 | . . . . . . . 1 1 Recompile 2 | . . . . . . . 1 1 Repair Stations . | . . . . . . . . . Recycling Units 5 | . . . 5 . . . . . Tunnel 5 | . . . 5 . . . . . Scanalyzers . | . . . . . . . . . Garrison Access . | . . . . . . . . . Data Cores Recovered 1 | . . . . . 1 . . . Used . | . . . . . . . . . Hacking Detections 19 | . . . 6 . 6 1 4 2 Full Trace Events 4 | . . . 1 . 1 . 1 1 Feedback Events . | . . . . . . . . . Feedback Blocked . | . . . . . . . . . Robot Schematics Acquired . | . . . . . . . . . Robots Built . | . . . . . . . . . Authchips . | . . . . . . . . . Time . | . . . . . . . . . Total Robot Build Rating . | . . . . . . . . . Part Schematics Acquired 16 | . . . 3 . 10 3 . . Parts Built . | . . . . . . . . . Authchips . | . . . . . . . . . Time . | . . . . . . . . . Total Part Build Rating . | . . . . . . . . . Part Studies Acquired 6 | . . . . . 6 . . . Parts Repaired . | . . . . . . . . . Time . | . . . . . . . . . Parts Recycled . | . . . . . . . . . Recycled Matter . | . . . . . . . . . Retrieved Matter . | . . . . . . . . . Retrieved Components . | . . . . . . . . . Parts Scanalyzed 1 | . . . . . 1 . . . Part Schematics Acquired 1 | . . . . . 1 . . . Parts Damaged . | . . . . . . . . . Bothacking | -11 -10 -10 -8 -8 -6 -6 -6 -5 ------------ Run | Yrd Mat Sub Rec Scr Fac Gar Fac Fac Used RIF Installer . | . . . . . . . . . Robots Hacked . | . . . . . . . . . Non-combat . | . . . . . . . . . Combat . | . . . . . . . . . Robot Hacks Applied . | . . . . . . . . . Relay Couplers Released 17 | . . . . . . 17 . . Machine Destruction 17 | . . . . . . 17 . . Fabnet Peak Effective % . | . . . . . . . . . Robots Rewired . | . . . . . . . . . Allies Hacked 1 | . . . . . . 1 . . Hacks Repelled . | . . . . . . . . . Allies | -11 -10 -10 -8 -8 -6 -6 -6 -5 -------- Run | Yrd Mat Sub Rec Scr Fac Gar Fac Fac Total Allies 16 | . . . . 1 3 11 1 . Largest Group 1 | . . . . 1 1 1 . . Highest-Rated Group 85 | . . . . 69 85 41 . . Highest-Rated Ally 85 | . . . . 69 85 41 . . Total Orders 4 | . . . . . 4 . . . ROAM 1 | . . . . . 1 . . . RETURN 3 | . . . . . 3 . . . Ally Attacks 105 | . . . . 17 26 62 . . Total Damage 2131 | . . . . 435 441 1255 . . Kills 15 | . . . . 6 4 5 . . Allies Corrupted 1 | . . . . . 1 . . . Allies Melted 1 | . . . . 1 . . . . Intel | -11 -10 -10 -8 -8 -6 -6 -6 -5 ------- Run | Yrd Mat Sub Rec Scr Fac Gar Fac Fac Active Infowar (turns) 1599 | 14 143 1367 . . . . . 75 Optics 75 | . . . . . . . . 75 Structural 76 | . . 76 . . . . . . Seismic 1448 | 14 143 1291 . . . . . . Robot Analysis Total 7 | . . . 2 5 . . . . Derelict Logs Recovered 5 | . . 2 . 3 . . . . Drone Launches 5 | . . . . . 3 2 . . Drone Recoveries 4 | . . . . . 3 1 . . Exploration | -11 -10 -10 -8 -8 -6 -6 -6 -5 ------------- Run | Yrd Mat Sub Rec Scr Fac Gar Fac Fac Turns Passed 15771 | 99 143 5932 2006 4798 1102 1084 308 299 Spaces Moved 7676 | 50 47 2565 800 1784 589 652 564 625 Core 152 | 4 . . . . . . 3 145 Treads 5316 | 46 47 2565 800 1737 121 . . . Legs 1059 | . . . . . 468 591 . . Wheels 47 | . . . . 47 . . . . Hover . | . . . . . . . . . Flight 1102 | . . . . . . 61 561 480 Fastest Speed 30 | 50 160 160 242 90 105 40 30 30 Average Speed 180 | 154 160 205 246 247 149 110 38 38 Slowest Speed 610 | 160 160 320 250 260 260 610 400 50 Overloaded Moves 14 | . . . . . . . 13 1 Propulsion Burnouts . | . . . . . . . . . Robots Hopped 39 | . . . . . . 1 23 15 Potential Cave-ins 2 | . . . . 2 . . . . Cave-ins Triggered . | . . . . . . . . . Exploration Rate (%) 45 | 3 7 97 92 86 18 68 12 23 Regions Visited 8 Branch Regions 3 Pre-discovered Areas 6 | . . 1 5 . . . . . Known Exits Taken 2 | . . . . . 1 . 1 . Unknown Exits Taken 5 | 1 1 1 1 1 . . . . Scrap Searched 12 | . . 8 . 4 . . . . Spaces Dug 50 | . . 1 . 12 8 29 . . Terrain Destroyed 229 | . . 2 . 11 31 185 . . Melee 10 | . . 1 . . 8 1 . . Projectile 1 | . . 1 . . . . . . AOE 207 | . . . . . 23 184 . . Terrain Rammed 2 | . . . . . . . . 2 Walls Destroyed . | . . . . . . . . . Machines Disabled . | . . . . . . . . . Actions | -11 -10 -10 -8 -8 -6 -6 -6 -5 --------- Run | Yrd Mat Sub Rec Scr Fac Gar Fac Fac Total 9275 | 67 111 3081 828 2186 765 941 622 674 Wait 993 | 1 62 338 1 309 58 182 27 15 Move 7597 | 49 46 2564 799 1783 588 647 520 601 Hop 30 | . . . . . . 1 20 9 Pick Up 124 | 8 1 18 17 36 17 18 7 2 Fast Attach 38 | 3 . 7 1 3 17 3 3 1 Attach 35 | 4 . 5 . 4 4 6 9 3 Detach 7 | . . 1 . 2 . 1 2 1 Swap 40 | . . 20 . 5 12 2 1 . Drop 109 | . . 23 4 41 22 5 4 10 Fire 133 | 2 2 64 . . 14 41 10 . Melee 100 | . . 31 5 3 31 30 . . Ram 41 | . . . . . . . 19 22 Kick . | . . . . . . . . . Crush 1 | . . . 1 . . . . . Escape Stasis 17 | . . . . . 2 5 . 10 Rewire . | . . . . . . . . . Trap . | . . . . . . . . . Miscellaneous 10 | . . 10 . . . . . . Route ------- -11/Scrapyard -10/Materials -10/Subcaves (discovered 4 exits: [*Mat x2] / *Rec / *Scr) -8/Recycling (discovered 2 exits: *Fac / *Scr) -8/Scraptown (discovered 2 exits: *Fac x2) -6/Factory (discovered 3 exits: *Low / Ext / Gar) -6/Garrison (discovered 3 exits: *Fac x3) -6/Factory (discovered 8 exits: *Fac x4 / Low x2 / *Ext x2) -5/Factory History --------- Turn | Location | Event 21 | -11/Scrapyard | Discovered new exit (range 16) 100 | -11/Scrapyard | Entered Materials 219 | -10/Materials | Discovered new exit (range 7) 243 | -10/Materials | Entered Subcaves 244 | -10/Subcaves | Approached by a straggling Scientist 316 | -10/Subcaves | Build established: Mutant 318 | -10/Subcaves | Shifting Twisted Machinery released Battle Rifle 442 | -10/Subcaves | Discovered new exit (range 13) 518 | -10/Subcaves | Shifting Twisted Machinery released Sub. Monowheel 570 | -10/Subcaves | Learned 2 Materials zone layouts 582 | -10/Subcaves | Disturbed a concealed Subdweller 1290 | -10/Subcaves | Learned Materials interactive machine intel 1779 | -10/Subcaves | Discovered new exit (range 7) 2307 | -10/Subcaves | Build established: Subdweller-Mutant 2642 | -10/Subcaves | Curiously followed by a Cobbler waking with a query about "LVR3C" 2736 | -10/Subcaves | A swath of the cavern ceiling suddenly collapsed 2846 | -10/Subcaves | Shifting Twisted Machinery released Sub. Machine Gun 2927 | -10/Subcaves | Shifting Twisted Machinery released Sub. Monowheel 2932 | -10/Subcaves | Shifting Twisted Machinery released Piercing Trap 3511 | -10/Subcaves | A swath of the cavern ceiling suddenly collapsed 4260 | -10/Subcaves | Visited Clippyterm 4267 | -10/Subcaves | Learned location of Deep Caves (-7) 4267 | -10/Subcaves | Learned Factory emergency access door positions 4936 | -10/Subcaves | Visited 4L-MR0's lab 4985 | -10/Subcaves | Found Flightbrick 5271 | -10/Subcaves | Build established: Mutant 5521 | -10/Subcaves | Found SUBCON Basin 6170 | -10/Subcaves | Discovered new exit (range 3) 6175 | -10/Subcaves | Entered Recycling 6760 | -8/Recycling | Discovered new exit (range 15) 7483 | -8/Recycling | Scanned before Scraplab entrance 7516 | -8/Recycling | Entered Scraplab 8176 | -8/Recycling | Discovered new exit (range 3) 8181 | -8/Recycling | Entered Scraptown 8281 | -8/Scraptown | Visited Red Mages 8370 | -8/Scraptown | Visited Awakened 8431 | -8/Scraptown | Scanned Subdweller tech in exchange for log data 8438 | -8/Scraptown | Learned Research security intel 8443 | -8/Scraptown | Learned Factory emergency access door positions 8465 | -8/Scraptown | Discovered new exit (range 13) 9277 | -8/Scraptown | Visited Assassins FH 9354 | -8/Scraptown | Visited Shadow of the Wyrm 9402 | -8/Scraptown | Visited Fellowship of the Rings 9434 | -8/Scraptown | Visited TADAMA 9457 | -8/Scraptown | Visited UFD Registry 9457 | -8/Scraptown | Registered with UFD as "Protoncircuit" 9534 | -8/Scraptown | Visited Modified Component R&D 9622 | -8/Scraptown | Visited DA-N13 Charitable Foundation 9632 | -8/Scraptown | Found DCF Scrap (29 items) 9744 | -8/Scraptown | Visited Scrapoid Research Area 9780 | -8/Scraptown | Visited Chapter 10 9803 | -8/Scraptown | Visited Analyses Database 9859 | -8/Scraptown | Visited Scrap Suit Storage 9897 | -8/Scraptown | Visited LU-1G1's Boring Crew 9957 | -8/Scraptown | Build established: Derelict-Mutant 9982 | -8/Scraptown | Delivered Scrap Shield to a Scientist 10164 | -8/Scraptown | Visited Science Guys 10281 | -8/Scraptown | Visited Curators Association 10327 | -8/Scraptown | Visited Botcube Research 10826 | -8/Scraptown | Found Scrap Suit 12064 | -8/Scraptown | Found Botcube 12143 | -8/Scraptown | Botcube activated 12165 | -8/Scraptown | Botcube completed mutation into treaded form, armed with 2 guns. 12406 | -8/Scraptown | Met Optimus 12406 | -8/Scraptown | Accepted into 0bPrime 12806 | -8/Scraptown | Civil war broke out across Scraptown 12810 | -8/Scraptown | Found Master Drone Bay 12841 | -8/Scraptown | Found Prototype Special Weapon 12865 | -8/Scraptown | Identified LU-1G1's Laser Shovel 12942 | -8/Scraptown | Optimus destroyed in the chaos of civil war 12966 | -8/Scraptown | Discovered new exit (range 5) 12979 | -8/Scraptown | Entered Factory 12979 | -6/Factory | Accompanied by 1 ally 12979 | -6/Factory | Evolved 8 slots: Power x1, Propulsion x3, Utility x4 12980 | -6/Factory | Identified exit to Extension 12987 | -6/Factory | Lost 8 allies 13033 | -6/Factory | Murdered Mutated Botcube 13033 | -6/Factory | Destroyed Mutated Botcube 13041 | -6/Factory | Found Botcube 13077 | -6/Factory | Master Drone dominated G-50 Soldier. 13330 | -6/Factory | Tech Extrapolator generated special schematic: Deep Structural Scanner 13456 | -6/Factory | Spotted B-75 Beast 13550 | -6/Factory | Master Drone dominated B-75 Beast. 13828 | -6/Factory | Master Drone dominated P-60 Hacker. 13866 | -6/Factory | Build established: Mutant 14014 | -6/Factory | Discovered new exit (range 7) 14075 | -6/Factory | Identified exit to Garrison 14081 | -6/Factory | Entered Garrison 14127 | -6/Garrison | Triggered checkpoint 14131 | -6/Garrison | Master Drone dominated H-66 Slayer. 14133 | -6/Garrison | Tech Extrapolator generated special schematic: Energy Deflector 14145 | -6/Garrison | Garrison Relay disabled 14201 | -6/Garrison | Master Drone dominated P-60 Hacker. 14210 | -6/Garrison | Master Drone dominated Slayer 5a. 14245 | -6/Garrison | Triggered checkpoint 14264 | -6/Garrison | Master Drone dominated Y-54 Guardian. 14267 | -6/Garrison | Master Drone dominated Y-54 Guardian. 14275 | -6/Garrison | Triggered checkpoint 14283 | -6/Garrison | Master Drone dominated Y-54 Guardian. 14291 | -6/Garrison | Master Drone dominated Y-54 Guardian. 14321 | -6/Garrison | Lost 4 allies 14347 | -6/Garrison | Triggered checkpoint 14366 | -6/Garrison | Master Drone dominated G-50 Soldier. 14410 | -6/Garrison | Garrison Relay disabled 14452 | -6/Garrison | Discovered new exit (range 12) 14535 | -6/Garrison | Triggered checkpoint 14540 | -6/Garrison | Master Drone dominated Y-54 Guardian. 14568 | -6/Garrison | Assembled breached garrison interior 14575 | -6/Garrison | Discovered new exit (range 15) 14619 | -6/Garrison | Master Drone dominated B-48 Gladiator. 14638 | -6/Garrison | Master Drone dominated B-48 Gladiator. 14704 | -6/Garrison | Garrison Relay disabled 14765 | -6/Garrison | Master Drone dominated G-50 Soldier. 14815 | -6/Garrison | Garrison Relay disabled 14882 | -6/Garrison | Attempted to access garrison exit controls, blocked by remote lockdown 14958 | -6/Garrison | System corruption reached 10% 15113 | -6/Garrison | Attached Flightbrick, gained temporary slots: Utility x3 15118 | -6/Garrison | Destroyed 33 combat bots 15131 | -6/Garrison | Lost 9 parts (2p3n3u1w) 15156 | -6/Garrison | Discovered new exit (range 10) 15165 | -6/Garrison | Entered Factory 15181 | -6/Factory | Botcube activated 15218 | -6/Factory | Core integrity fell below 50% 15228 | -6/Factory | Found Botcube 15337 | -6/Factory | Discovered exit to Extension (range 14) 15440 | -6/Factory | Identified exit to Lower Caves 15440 | -6/Factory | Identified exit to Factory 15473 | -6/Factory | Entered another Factory area 15473 | -5/Factory | Evolved 2 slots: Propulsion x1, Utility x1 15586 | -5/Factory | Build established: Hacker-Mutant 15633 | -5/Factory | Spotted B-75 Beast 15676 | -5/Factory | Lost 3 parts (1p2n) 15731 | -5/Factory | Core integrity fell below 50% 15761 | -5/Factory | Core integrity fell below 20% 15772 | -5/Factory | Destroyed by S-27 Virus with Autogun Last Messages --------------- 15743_ Slammed into Fusion Modulator. 15743_ Destabilizing: System corrupted (+2). 15743_ Destabilizing: Core damaged (-50). 15744_ Slammed into Fusion Modulator. 15744_ Imp. Hacking Suite destroyed. 15744_ System corrupted by crushing effect (+5). 15745_ Slammed into S-27 Virus. 15749_ System corrupted: Matter fused (-8). 15749_ Slammed into S-27 Virus. 15756_ S-27 Virus destroyed. 15757_ Acquired 30 matter. 15757_ Slammed into S-27 Virus. 15757_ Destabilizing: System corrupted (+2). 15758_ Slammed into S-27 Virus. 15762_ Acquired VTOL Module. 15765_ Penetrated by Slug. 15765_ M-13 Machinist repairs S-27 Virus. 15766_ System corrupted: Component data lost. 15766_ S-27 Virus destroyed. 15771_ K-01 Serf cleans the Neutrino Reactor. Map ----- +----------------------------------------------------+ | #? # #??????????# ##### """" | | #? # #??????????# " / """" | | # ! * # #??#+##????# ##### """" | | # # #?? #????# #???# """" | | + # #?? " #????## ##???# | | # # #?? ??????# #????#! | | #############?## #### #??????# #????######## | | #?????????????# ######## #?????# | | #?????????????# # """ ## ##????# | | #?????????????+ """ #[""" # #????# % | | #?????????????# "Y #="""[# ###### | | #?????????????# """ # * */% | | #???????????????# # # ########/### | | #????????#??????# #! ! # #?# """ | | #????????# ????+ k ######### ###?# "Y" | | #????????# """??# """ #??# #???# | | #????????# """ # """ ####m###?# | | ########## """ + """ ## s #?# | | # # ## " ### [ | | = ######## s "T ! + | | % s# ### """""" | | ^ * s # #?# = """""" | | s #######?# """""" | | " " " " " " " " " " " " u ^ ######### """""" | | " " " " " " " " " " " "% + | | " " " " " " " " " " " " @ ################## | | " " " " " " " " " " " " g#####+## #? | | " " " " " " " " " " " " #??????# #? | | " " " " " " " " " " " " #??????# #? | | " " " " " " " " " " " " #??????# #? | | " " " " " " " " " " " " #??????# #? | | " " " " " " " " " " " " #??????# #? | | ##?????# #? | | #?????# #? | | ################### H #?????# #? | | ??????????????????# #?????# #? | | ??????????????????# ##############/######### | | ??????????????????# + | | ??????????????????# # """ | | ????????????????????# # """ | | ????????????????????# # """ | | ????????????????????# # | | ????????????????????# # """ | | ??????????????????# # "R | | ??????????????????# "" ## """ | | #??????????????????# "" ## "" | | #??????????????????# "" ## | | #????????????????? " ###+### | | #????????????????? | | #???????????????? """" | +----------------------------------------------------+ Best States ------------- Heat Dissipation 40 Energy Generation 31 Energy Capacity 520 Matter Stores 300 Matter Capacity 300 Sight Range 22 Terrain Scan Density 10 Armor Coverage 800 Resistance: KI 30 Resistance: TH 20 Propulsion Shielding 66 Utility Shielding 66 Evasion (%) 64 Targeting Accuracy 8 Recoil Reduction 3 Offensive Hacking 44 Authchip Count 8 Item Schematics ----------------- Imp. Utility Shielding | -8/Recycling | Hacked Trap Extractor | -8/Recycling | Hacked Transport Network Coupler | -8/Recycling | Hacked Lgt. Humpback | -6/Factory | Extrapolated Deep Structural Scanner | -6/Factory | Extrapolated Ripper | -6/Factory | Extrapolated CPS Tube | -6/Factory | Scanalyzed Mak. Thermal Plating | -6/Factory | Extrapolated Mak. Hacking Suite | -6/Factory | Extrapolated Mak. Coolant Network | -6/Factory | Extrapolated 0b10 Decoder Chip [Skirmisher] | -6/Factory | Extrapolated Mak. Terrain Scanner | -6/Factory | Extrapolated Mak. Light Armor Plating | -6/Factory | Extrapolated Energy Deflector | -6/Garrison | Extrapolated Beamcaster | -6/Garrison | Extrapolated Mak. Shrapnel Gun | -6/Garrison | Extrapolated Robot Schematics ------------------ None Fabricated ------------ Nothing Repaired ---------- Nothing Studied --------- Imp. Carbon-fiber Leg | -6/Factory | Hacked Imp. VSS Leg | -6/Factory | Hacked Imp. Datajack | -6/Factory | Hacked Lgt. Nuclear Core | -6/Factory | Hacked Mni. Grenade Launcher | -6/Factory | Hacked Flak Cannon | -6/Factory | Hacked Alien Tech Used ----------------- None Achievements -------------- Frankenstein Challenges ------------ None Game ------ Seed HeatAlphaExoskeleton Manual? 0 Play Time 01:17:28 Cumulative 836.3 hours Start 2025.11.27 @ 12:34:51 End 2025.11.27 @ 14:23:40 Sessions 5 Manual Loads 0 Difficulty Rogue Special Mode None Game No. 843 Rogue 843 Adventurer 0 Explorer 0 Win Type - Total 40 Types 15/4/11/2/0/0/5/2/1/0 Lore% 96 Gallery% 86 Achievement% 65 Wizard Run 0 Options --------- Layout 0 ASCII 0 Keyboard 0 Movement Numpad Keybinds 0 Fullscreen 1 Font 18/Smallcaps Map View 76x50 Zoom Use 0% Tactical HUD 1 Map Filters NONE Filters NONE Steam 1 RUN: bb3f0339-b7a8-4cc9-b901-c30e9b8837e8